[Event "26th Triest Festival 2024"]
[Site "Triest"]
[Date "2024.09.02"]
[Round "4.6"]
[White "Simonetto, Andrea"]
[Black "Willems, Niels"]
[Result "1/2-1/2"]
[Annotator "TA"]
[ECO "D94"]
[WhiteElo "2323"]
[BlackElo "2384"]
[PlyCount "68"]
[EventDate "2024.09.02"]
[EventType "swiss"]
[EventCountry "ITA"]
[SourceTitle "playchess.com"]
[Source "ChessBase"]
[SourceQuality "1"]
[TimeControl "5400+30"]

{[%evp 18,68,-6,-6,0,0,4,0,0,0,0,-18,-14,-6,-14,-14,-10,-20,0,0,0,0,46,-3,-3,-6,0,0,0,0,0,-2,0,-15,0,-5,0,0,0,0,0,0,0,0,0,0,0,0,0,0,0,0,0]} 1. Nf3 {[%emt 0:00:04]} c5 {[%emt 0:04:32]} 2. e3 {[%emt 0:04:23]} Nf6 {[%emt 0:00:20]} 3. d4 {[%emt 0:00:18]} d5 {[%emt 0:00:23]} 4. c4 {[%emt 0:00:10]} cxd4 {[%emt 0:01:05]} 5. exd4 {[%emt 0:00:02]} g6 {[%emt 0:00:50]} 6. Nc3 {[%emt 0:01:24]} Bg7 {[%emt 0:00:06]} 7. Be2 {[%emt 0:03:35]} O-O {[%emt 0:00:48]} 8. O-O {[%emt 0:00:05]} Nc6 {[%emt 0:00:44]} 9. Bg5 {[%emt 0:10:23]} dxc4 {[%emt 0:03:03]} 10. Bxc4 {[%emt 0:00:20]} Bg4 {[%emt 0:00:51]} 11. d5 {[%emt 0:05:39]} Ne5 {[%emt 0:09:54]} 12. Be2 {[%emt 0:01:29]} Bxf3 {[%emt 0:00:15]} 13. Bxf3 {[%emt 0:00:17]} Qb6 {[%emt 0:01:30]} 14. Rb1 {[%emt 0:14:43]} Rfd8 {[%emt 0:03:39]} 15. Re1 {[%emt 0:08:46]} Nxf3+ {[%emt 0:00:24]} 16. Qxf3 {[%emt 0:00:02]} Rd7 {[%emt 0:00:52]} 17. h3 {[%emt 0:14:05]} a5 {[%emt 0:06:03]} 18. Re2 {[%emt 0:03:43]} a4 {[%emt 0:12:48]} 19. Rbe1 {[%emt 0:04:10]} Qd6 {[%emt 0:05:05]} (19... a3 $11 20. bxa3 (20. Rxe7 $2 Rxe7 21. Rxe7 axb2 $19) 20... h6) 20. Ne4 {[%emt 0:07:10]} (20. Bf4 $1 $14 {should be considered.} Qc5 21. d6 exd6 22. Nxa4) 20... Nxe4 $11 {[%emt 0:01:40] The position is equal.} 21. Qxe4 {[%emt 0:00:09]} (21. Rxe4 {simplifies} Qxd5 22. Rxe7 Rxe7 23. Rxe7 Qxf3 24. gxf3 b5 25. Rb7) 21... Bf6 {[%emt 0:03:52]} (21... Qxd5 {simplifies} 22. Qxd5 Rxd5 23. Bxe7 Re8) 22. Bxf6 {[%emt 0:01:43]} Qxf6 {[%emt 0:00:16]} 23. Qb4 {[%emt 0:00:17]} Kf8 {[%emt 0:02:20]} 24. a3 {[%emt 0:00:53]} Ra6 {[%emt 0:06:38]} 25. Qg4 {[%emt 0:02:51]} Qd6 {[%emt 0:03:19]} 26. Qh4 {[%emt 0:02:16]} Kg7 {[%emt 0:01:46]} 27. Rxe7 {[%emt 0:00:54]} Rxe7 {[%emt 0:00:15]} 28. Rxe7 {[%emt 0:01:00]} Qxd5 {[%emt 0:00:12][%mdl 4096] Endgame. KQR-KQR} 29. Qb4 {[%emt 0:00:34]} b5 {[%emt 0:02:58]} 30. Qc3+ {[%emt 0:02:44]} Rf6 {[%emt 0:00:39]} 31. Re3 {[%emt 0:01:11]} Qd1+ {[%emt 0:00:54]} 32. Re1 {[%emt 0:01:00]} Qd5 {[%emt 0:00:44]} 33. Re3 {[%emt 0:00:48]} Qd1+ {[%emt 0:00:07]} 34. Re1 {[%emt 0:00:10]} Qd5 {[%emt 0:00:04] An interesting draw.   Weighted Error Value: White=0.05 (flawless) /Black=0.05 (flawless) .  Mistake:       	White=1     	Black=1      OK:         	White=7     	Black=11     Best:        	White=1     	Black=1} 1/2-1/2

[Event "26th Triest Festival 2024"]
[Site "Triest"]
[Date "2024.09.02"]
[Round "4.7"]
[White "Kovchan, Alexander"]
[Black "Brilej, Jaka"]
[Result "1-0"]
[Annotator "TA"]
[ECO "B92"]
[WhiteElo "2455"]
[BlackElo "2280"]
[PlyCount "83"]
[EventDate "2024.09.02"]
[EventType "swiss"]
[EventCountry "ITA"]
[SourceTitle "playchess.com"]
[Source "ChessBase"]
[SourceQuality "1"]
[TimeControl "5400+30"]

{[%evp 16,83,20,15,19,0,16,15,11,14,16,0,0,0,0,0,25,0,0,0,0,0,0,0,35,24,64,-29,-17,-29,0,-30,32,-43,0,0,154,151,157,160,179,132,182,182,178,178,186,194,204,191,189,195,189,190,168,184,1369,1345,1427,1411,1703,1535,29974,29975,29952,1127,29976,29977,29974,29970]} 1. e4 {[%emt 0:00:03]} c5 {[%emt 0:05:31]} 2. Nf3 {[%emt 0:00:08]} d6 {[%emt 0:00:06]} 3. d4 {[%emt 0:00:08]} cxd4 {[%emt 0:00:06]} 4. Nxd4 {[%emt 0:00:05]} Nf6 {[%emt 0:00:06]} 5. Nc3 {[%emt 0:00:07]} a6 {[%emt 0:00:03]} 6. Be2 {[%emt 0:00:35]} e5 {[%emt 0:00:40]} 7. Nb3 {[%emt 0:00:09]} Be7 {[%emt 0:00:10]} 8. O-O {[%emt 0:00:08]} O-O {[%emt 0:00:13]} 9. Re1 {[%emt 0:00:05]} Be6 {[%emt 0:02:49]} 10. Bf3 {[%emt 0:00:10]} Qc7 {[%emt 0:02:18]} 11. a4 {[%emt 0:00:58]} Nbd7 {[%emt 0:06:26] The position is equal.} 12. a5 {[%emt 0:00:48]} Rfc8 {[%emt 0:07:20]} 13. h3 {[%emt 0:01:14]} h6 {[%emt 0:00:16]} 14. Re2 {[%emt 0:02:05]} Bc4 {[%emt 0:02:53]} 15. Re3 {[%emt 0:01:58]} Rab8 {[%emt 0:03:25]} 16. Be2 {[%emt 0:02:11]} Be6 {[%emt 0:08:27]} 17. Rg3 {[%emt 0:03:55]} Kf8 {[%emt 0:00:42]} 18. Be3 {[%emt 0:01:45]} Qc6 {[%emt 0:04:41]} 19. Bf3 {[%emt 0:02:31]} Nh7 {[%emt 0:03:42]} 20. Bg4 {[%emt 0:01:40] And now Bxe6 would win.} Nhf6 {[%emt 0:03:50]} 21. Qf3 {[%emt 0:08:08]} (21. Bxe6 $14 fxe6 22. Qf3) 21... Nxg4 $11 {[%emt 0:04:36]} 22. hxg4 {[%emt 0:00:39][%cal Bh3g4,Bg4g5][%mdl 32]} Bg5 {[%emt 0:00:08]} 23. Rd1 {[%emt 0:11:31]} Ke7 {[%emt 0:02:35]} ({Black should play} 23... Nf6 $11) 24. Rd2 {[%emt 0:10:20]} ({White should try} 24. Bxg5+ $14 hxg5 25. Qe3) 24... Bxe3 {[%emt 0:05:27]} 25. Qxe3 {[%emt 0:00:37]} b5 $2 {[%emt 0:01:03] White leaves nothing to chance now.} ({Better is} 25... Nc5 $11) 26. g5 $16 {[%emt 0:03:54] [#] Hoping for Nd5+.} h5 {[%emt 0:00:23]} 27. Nd5+ {[%emt 0:01:43]} Bxd5 {[%emt 0:00:40]} 28. exd5 {[%emt 0:00:09]} Qc4 {[%emt 0:05:40]} (28... Qc7 $16) 29. Nd4 $18 {[%emt 0:00:17] aiming for g6.} g6 {[%emt 0:00:14][%cal Oe7f8]} 30. Nc6+ {[%emt 0:11:29]} Rxc6 {[%emt 0:00:07]} 31. dxc6 {[%emt 0:00:04]} Qxc6 {[%emt 0:00:07]} 32. f4 {[%emt 0:04:06]} Rc8 {[%emt 0:08:25]} 33. fxe5 {[%emt 0:03:14]} Nxe5 {[%emt 0:00:10]} 34. Qf4 {[%emt 0:00:16]} Qc5+ {[%emt 0:00:56]} 35. Kh1 {[%emt 0:00:09]} Qc4 $2 {[%emt 0:03:56] [#]} (35... b4) 36. Qf6+ {[%emt 0:03:04]} Ke8 {[%emt 0:00:06]} 37. Re3 {[%emt 0:00:18]} ({Stronger than} 37. Rxd6 Qh4+ 38. Kg1 (38. Rh3 Qe1+) 38... Qxg3 $11) 37... Qc5 {[%emt 0:04:38]} 38. Rde2 {[%emt 0:01:48]} Kd7 {[%emt 0:00:39]} 39. Rxe5 {[%emt 0:01:03]} dxe5 {[%emt 0:00:08]} 40. Rxe5 {[%emt 0:00:47]} (40. Qxf7+ $142 Kd8 41. Rd2+ (41. Qxg6 Qd4 $18) 41... Qd4 42. Rxd4+ exd4 43. Qxg6 Rc4 44. Qd6+ (44. Qxa6 d3 $18) (44. Qxh5 Rc5 $18) 44... Kc8 45. g6 (45. Qxa6+ Kd8 $18)) 40... Qf8 {[%emt 0:00:45]} 41. Rd5+ {[%emt 0:00:14]} Ke8 {[%emt 0:00:09]} 42. Qxa6 {[%emt 0:00:15] Weighted Error Value: White=0.13 (very precise) /Black=0.54.  Mistake:       	White=2     	Black=4      Inaccurate:     	White=1     	Black=4      OK:         	White=8     	Black=7      Best:        	White=2     	Black=2} 1-0

[Event "26th Triest Festival 2024"]
[Site "Triest"]
[Date "2024.09.02"]
[Round "4.8"]
[White "Kanyamarala, Trisha"]
[Black "Lumachi, Gabriele"]
[Result "0-1"]
[Annotator "TA"]
[ECO "A80"]
[WhiteElo "2179"]
[BlackElo "2440"]
[PlyCount "142"]
[EventDate "2024.09.02"]
[EventType "swiss"]
[EventCountry "ITA"]
[SourceTitle "playchess.com"]
[Source "ChessBase"]
[SourceQuality "1"]
[TimeControl "5400+30"]

{[%evp 37,142,0,0,0,0,0,0,-46,-54,-54,-54,-290,-286,-294,-272,-306,0,0,0,-16,-19,-7,-20,-11,0,0,0,-8,-8,-8,-8,-8,-8,-8,-8,-8,-8,-8,-8,-8,0,-8,0,-8,0,-8,-8,-34,-34,-34,0,0,0,-37,-41,-41,0,0,0,-42,0,0,0,-8,-8,-8,0,-68,-68,-143,0,0,0,0,0,0,0,0,0,0,0,-58,-58,-2132,-1317,-1979,-1860,-1215,-1189,-4690,-3764,-6208,-5093,-29974,-29975,-29973,-29974,-29981,-29982,-29982,-29983,-29983,-29984,-29984,-29985,-29987,-29982]} 1. d4 {[%emt 0:00:04]} f5 {[%emt 0:00:10]} 2. Bg5 {[%emt 0:03:19]} g6 {[%emt 0:00:19]} 3. c4 {[%emt 0:12:58]} Bg7 {[%emt 0:05:46]} 4. Nc3 {[%emt 0:01:11]} Nc6 {[%emt 0:02:43]} 5. Nf3 {[%emt 0:02:48]} h6 {[%emt 0:01:38]} 6. Bc1 {[%emt 0:03:02] A80: Dutch Defence: Unusual White second moves.} d6 $146 {[%emt 0:05:43]} ({Predecessor:} 6... e5 7. d5 Nd4 8. Nd2 f4 9. e3 Nf5 10. Qg4 Qg5 11. Qxg5 hxg5 12. Nde4 d6 13. Nxg5 {1-0 Tkadlecek,P (1626)-Novotny,F Tabor op 2007 (3)}) 7. d5 {[%emt 0:04:13]} Ne5 {[%emt 0:01:24]} 8. e4 {[%emt 0:04:15]} fxe4 {[%emt 0:15:37]} 9. Nxe5 {[%emt 0:04:38]} Bxe5 {[%emt 0:00:21]} 10. Nxe4 {[%emt 0:00:44]} e6 {[%emt 0:05:05]} 11. Qg4 {[%emt 0:20:21]} Kf7 {[%emt 0:00:32]} 12. Qf3+ {[%emt 0:01:51]} Kg7 {[%emt 0:01:11]} 13. dxe6 {[%emt 0:01:06]} Bxe6 {[%emt 0:01:05]} 14. Bd3 {[%emt 0:00:44]} Qh4 {[%emt 0:09:52]} 15. Bd2 {[%emt 0:12:34]} Rf8 {[%emt 0:03:27]} 16. Qe3 {[%emt 0:05:57]} Nf6 {[%emt 0:01:40]} 17. g3 {[%emt 0:02:33]} Qh5 {[%emt 0:05:34]} 18. Nxf6 {[%emt 0:04:53]} Rxf6 {[%emt 0:04:32]} 19. f4 {[%emt 0:04:57]} Bxb2 {[%emt 0:04:12]} 20. Rb1 {[%emt 0:00:39]} Re8 {[%emt 0:20:32]} 21. Be2 $1 {[%emt 0:08:13]} (21. Rxb2 $2 Bd7 $19) 21... Bd4 $1 {[%emt 0:05:58]} 22. Bxh5 {[%emt 0:00:00]} (22. Qxd4 $11 Bg4 23. O-O Rxe2 24. Rf2 Rxf2 25. Qxf2) 22... Bxe3 $15 {[%emt 0:00:05]} 23. Bxe3 {[%emt 0:00:00]} Bf5 $1 {[%emt 0:03:49]} (23... Bxc4 24. Kd2 gxh5 25. Rxb7 $11) 24. Rxb7 $2 {[%emt 0:00:09]} (24. Kf2 $15 Bxb1 (24... gxh5 25. Rxb7 Rf7 26. Rxa7 $14) 25. Rxb1 gxh5 26. Rxb7) 24... Rxe3+ $19 {[%emt 0:00:25]} (24... gxh5 25. Rxc7+ Rf7 26. Rxf7+ Kxf7 27. Kd2 $15) 25. Kf2 {[%emt 0:00:14]} Ra3 $1 {[%emt 0:00:25]} 26. Rxc7+ {[%emt 0:00:23] [#]} Rf7 $2 {[%emt 0:00:38]} (26... Kf8 $1 $19 27. Rd1 Rxa2+ (27... gxh5 $2 28. Rd2 $19) 28. Kg1 (28. Be2 $2 Re6 $19) 28... gxh5) 27. Rxf7+ $11 {[%emt 0:00:22]} Kxf7 {[%emt 0:00:01]} 28. Bf3 {[%emt 0:00:37]} Rxa2+ {[%emt 0:00:07]} 29. Ke3 {[%emt 0:00:09]} Ra3+ {[%emt 0:00:06]} 30. Kf2 {[%emt 0:00:09]} h5 {[%emt 0:01:57]} 31. h3 {[%emt 0:00:27]} Be6 {[%emt 0:00:29]} 32. Bd5 {[%emt 0:02:10]} Bxd5 {[%emt 0:00:12]} 33. cxd5 {[%emt 0:00:01]} a5 {[%emt 0:00:11]} 34. Rb1 {[%emt 0:00:26]} Rd3 {[%emt 0:00:23]} 35. Rb5 {[%emt 0:00:47]} a4 {[%emt 0:00:05]} 36. Ra5 {[%emt 0:00:22]} a3 {[%emt 0:00:30]} 37. Ra6 {[%emt 0:00:24]} Ke7 {[%emt 0:00:30]} 38. Ra7+ {[%emt 0:00:14]} Kf6 {[%emt 0:01:06]} 39. Ra6 {[%emt 0:00:12]} Ke7 {[%emt 0:00:23]} 40. Ra7+ {[%emt 0:00:04]} Kf6 {[%emt 0:00:04]} 41. Ra6 {[%emt 0:00:06]} Kf5 {[%emt 0:00:57]} 42. Ra4 {[%emt 0:02:42]} Rb3 {[%emt 0:00:47]} 43. Kg2 {[%emt 0:00:21]} Rb2+ {[%emt 0:00:32]} 44. Kf3 {[%emt 0:00:13]} Rb3+ {[%emt 0:00:02]} 45. Kg2 {[%emt 0:00:26]} Rc3 {[%emt 0:00:25]} 46. Kf2 {[%emt 0:00:17]} Rc2+ {[%emt 0:00:05]} 47. Kf3 {[%emt 0:00:06]} Rc3+ {[%emt 0:00:05]} 48. Kg2 {[%emt 0:00:35]} (48. Kf2 $5 {[%cal Rf2g2]}) 48... Kf6 {[%emt 0:00:04]} 49. Ra6 {[%emt 0:01:07]} Ke7 {[%emt 0:00:04]} 50. Ra7+ {[%emt 0:00:09]} Kd8 {[%emt 0:00:31]} 51. g4 {[%emt 0:00:39]} h4 {[%emt 0:01:02]} 52. f5 {[%emt 0:00:19]} ({White should try} 52. Ra8+ $11 Ke7 53. Ra7+ Ke8 54. Ra8+ Ke7 55. Ra7+ Kf6 56. Rd7) 52... Rg3+ {[%emt 0:00:35]} 53. Kh2 {[%emt 0:00:35] [#]} gxf5 {[%emt 0:00:49]} (53... g5 $1 $17 {Strongly threatening ...Rd3.} 54. f6 Ke8) 54. gxf5 $11 {[%emt 0:00:06]} Rd3 {[%emt 0:00:47]} 55. f6 {[%emt 0:01:18]} Ke8 {[%emt 0:00:29]} (55... Rxd5 $2 {is the wrong capture.} 56. Ra8+ Kd7 57. f7 $18) 56. Kg2 {[%emt 0:00:27]} Rg3+ {[%emt 0:01:27]} 57. Kh2 {[%emt 0:00:24]} Rb3 {[%emt 0:00:13]} 58. Kg2 {[%emt 0:00:09]} Kf8 {[%emt 0:00:05]} 59. Rd7 {[%emt 0:01:05]} (59. Ra6 $11) 59... Rg3+ $1 $15 {[%emt 0:01:26]} 60. Kh2 $2 {[%emt 0:00:08][%mdl 8192]} (60. Kf2 $15) 60... Rd3 $19 {[%emt 0:00:22]} 61. Kg2 {[%emt 0:01:06]} Rxd5 {[%emt 0:00:07]} 62. Ra7 {[%emt 0:00:26]} Rd3 {[%emt 0:00:32]} 63. Rb7 {[%emt 0:00:33]} d5 {[%emt 0:00:57]} 64. Ra7 {[%emt 0:00:19]} d4 {[%emt 0:00:22]} 65. Rd7 {[%emt 0:00:42]} Rg3+ {[%emt 0:00:40]} 66. Kf2 {[%emt 0:00:28]} Rxh3 {[%emt 0:00:23]} 67. Rxd4 {[%emt 0:00:07]} a2 {[%emt 0:00:27]} ({Inferior is} 67... Kf7 68. Kg2 Rc3 69. Rxh4 $11) 68. Rd1 {[%emt 0:00:31]} Ra3 {[%emt 0:00:21]} 69. Ra1 {[%emt 0:00:06]} Kf7 {[%emt 0:00:11]} 70. Ke2 {[%emt 0:00:04]} h3 {[%emt 0:00:10]} 71. Kd2 {[%emt 0:01:00]} h2 {[%emt 0:00:09]} 0-1

[Event "26th Triest Festival 2024"]
[Site "Triest"]
[Date "2024.09.02"]
[Round "4.9"]
[White "Dobrovoljc, Vid"]
[Black "Chia, Yu Zhe Ashton"]
[Result "0-1"]
[Annotator "TA"]
[ECO "C72"]
[WhiteElo "2387"]
[BlackElo "2224"]
[PlyCount "112"]
[EventDate "2024.09.02"]
[EventType "swiss"]
[EventCountry "ITA"]
[SourceTitle "playchess.com"]
[Source "ChessBase"]
[SourceQuality "1"]
[TimeControl "5400+30"]

{[%evp 13,112,51,62,52,56,48,49,62,60,60,65,40,46,45,39,33,28,16,28,27,46,43,41,30,20,0,0,0,32,31,95,92,102,39,25,26,99,77,84,84,66,65,93,93,125,69,60,74,50,36,95,80,99,89,96,89,105,108,104,96,118,124,127,122,135,136,142,91,93,88,86,22,17,28,19,19,25,-8,0,-37,-45,-160,-152,-278,-256,-518,-534,-675,-665,-773,-592,-5122,-5401,-2050,-1549,-5289,-5190,-4710,-1075,-986,-968]} 1. e4 {[%emt 0:03:56]} e5 {[%emt 0:00:57]} 2. Nf3 {[%emt 0:00:17]} Nc6 {[%emt 0:00:19]} 3. Bb5 {[%emt 0:02:32]} a6 {[%emt 0:00:10]} 4. Ba4 {[%emt 0:00:05]} d6 {[%emt 0:00:18]} 5. O-O {[%emt 0:03:52]} Bg4 {[%emt 0:00:26]} 6. h3 {[%emt 0:03:25]} h5 {[%emt 0:00:16]} 7. Bxc6+ {[%emt 0:02:38]} bxc6 {[%emt 0:00:06]} 8. d4 {[%emt 0:00:06]} (8. hxg4 hxg4 9. Re1 gxf3 10. Qxf3 Qh4 $19) 8... Bxf3 {[%emt 0:00:41]} 9. Qxf3 {[%emt 0:00:22]} exd4 {[%emt 0:00:08]} 10. Re1 {[%emt 0:16:13] White is slightly better.} Qd7 {[%emt 0:04:02]} 11. Qd3 {[%emt 0:18:09]} Be7 {[%emt 0:07:04]} 12. Qxd4 {[%emt 0:03:08]} Bf6 {[%emt 0:00:07]} 13. Qc4 {[%emt 0:00:32]} Ne7 {[%emt 0:00:30]} 14. Nc3 {[%emt 0:02:06]} O-O {[%emt 0:05:14]} 15. Qe2 {[%emt 0:01:03]} h4 {[%emt 0:01:13]} 16. Bd2 {[%emt 0:03:12]} Rfe8 {[%emt 0:03:11]} 17. Rad1 {[%emt 0:01:11]} Ng6 {[%emt 0:02:06]} 18. Kh1 {[%emt 0:05:09]} Be5 {[%emt 0:01:44]} 19. Rf1 {[%emt 0:03:25]} Qe6 {[%emt 0:02:09]} 20. Rde1 {[%emt 0:00:24] f4 is the strong threat.} Bxc3 {[%emt 0:08:18]} 21. Bxc3 {[%emt 0:00:14]} f5 {[%emt 0:03:01]} (21... d5 $14) 22. f3 {[%emt 0:01:50]} d5 {[%emt 0:15:04]} 23. Qd2 {[%emt 0:10:00]} ({White should try} 23. Qf2 $16) 23... dxe4 {[%emt 0:01:31]} 24. fxe4 $40 {[%emt 0:00:08][%mdl 128] White is up to no good.} f4 {[%emt 0:04:45]} (24... fxe4 $11 25. Re3 Qc4) 25. Qd4 {[%emt 0:02:55]} Re7 {[%emt 0:00:08]} 26. Qc5 {[%emt 0:00:30]} Rf8 {[%emt 0:03:46][%cal Ba8f8,Bf8f7,Bf7d7][%mdl 32]} 27. Rf3 {[%emt 0:00:22]} Rff7 {[%emt 0:01:45][%cal Og6e5]} 28. b3 {[%emt 0:00:38]} Nf8 {[%emt 0:01:19]} 29. Qg5 {[%emt 0:04:27]} (29. Qa5 $16) 29... Qg6 $14 {[%emt 0:05:03]} 30. Qxg6 {[%emt 0:00:11]} Nxg6 {[%emt 0:00:02]} 31. e5 {[%emt 0:00:11]} Re6 {[%emt 0:01:42]} ({Black should play} 31... Nf8 $1 $14) 32. Re4 $16 {[%emt 0:00:39]} Rd7 {[%emt 0:02:28]} 33. Rf1 {[%emt 0:04:04]} Rd5 {[%emt 0:01:00]} 34. Rc4 {[%emt 0:02:31]} Kf7 {[%emt 0:03:05]} 35. Kg1 {[%emt 0:00:03]} Ke8 {[%emt 0:02:14]} 36. Re1 {[%emt 0:01:24]} Kd7 {[%emt 0:02:52]} 37. Kf2 {[%emt 0:00:27]} c5 {[%emt 0:00:14]} 38. Re2 {[%emt 0:00:43]} Rc6 {[%emt 0:04:06] [#]} 39. e6+ $1 {[%emt 0:02:41][%mdl 512]} Rxe6 {[%emt 0:00:26]} 40. Bxg7 {[%emt 0:00:14]} (40. Rxe6 $142 Kxe6 41. Bxg7) 40... Red6 {[%emt 0:09:33]} 41. Bc3 {[%emt 0:00:32]} Rg5 {[%emt 0:00:31]} 42. Rce4 {[%emt 0:00:36]} (42. Kf1 $16) 42... Rg3 $11 {[%emt 0:01:21]} 43. Be1 {[%emt 0:02:09]} f3 $1 {[%emt 0:00:59]} 44. gxf3 {[%emt 0:00:13][%cal Oe4h4]} Rf6 $1 {[%emt 0:00:02][%csl Gg3][%cal Rf6f3]} 45. Rd2+ {[%emt 0:01:44]} (45. R2e3 $5 Nf4 46. Kf1 Rxh3 47. Rxf4 Rh1+ (47... Rxf4 $2 {too greedy.} 48. Kg2 $18) 48. Kg2 Rxe1 49. Rxf6 Rxe3 50. Kh3 $16 (50. Rxa6 Rc3 $11)) 45... Kc8 {[%emt 0:00:02]} 46. Ke2 {[%emt 0:01:00]} Rxh3 {[%emt 0:00:35]} 47. Kd1 {[%emt 0:01:04] [#]} (47. Bf2 $15) 47... Rh1 $1 $17 {[%emt 0:01:43][%cal Oh4h3]} 48. c3 {[%emt 0:00:39]} (48. Kc1 $17) 48... h3 $19 {[%emt 0:00:28]} ({Don't do} 48... Rxf3 49. Kc2 $19) 49. Ree2 $2 {[%emt 0:00:07]} (49. Kc2) 49... Rxf3 {[%emt 0:00:20][%cal Og6f4] aiming for ...Nf4! Black is clearly winning.} 50. Re6 {[%emt 0:00:55]} Nf4 {[%emt 0:00:18]} 51. Re8+ {[%emt 0:00:16]} Kb7 {[%emt 0:00:04]} 52. Rdd8 {[%emt 0:00:23]} Rd3+ {[%emt 0:01:14]} 53. Rxd3 {[%emt 0:00:48]} Nxd3 {[%emt 0:00:02]} 54. Kd2 {[%emt 0:00:06]} Nxe1 {[%emt 0:00:05]} 55. Ke2 {[%emt 0:00:04]} Ng2 {[%emt 0:01:37] ( -> ...Re1+)} 56. Kf3 {[%emt 0:00:20]} Rc1 {[%emt 0:00:04] Weighted Error Value: White=0.46/Black=0.17 (very precise) .  Mistake:       	White=7     	Black=3      Inaccurate:     	White=2     	Black=3      OK:         	White=14    	Black=16     Best:        	White=1     	Black=2      Strong:       	---       	Black=3} 0-1